bitfinex/quotes_SOLUSD_20241116
["timestamp","ask_amount","ask_price","bid_price","bid_amount"]
[1731791137207,14.20053133,215.82,215.77,0.21916462]
[1731791137406,14.20053133,215.8,215.76,15.3378]
[1731791137599,14.20053133,215.79,215.76,15.3378]
[1731791138300,14.20053133,215.8,215.76,15.3378]
[1731791138503,14.20053133,215.81,215.76,15.3378]
[1731791138725,14.20053133,215.8,215.76,15.3378]
[1731791139020,14.20053133,215.81,215.76,15.3378]
[1731791141202,4.6335,215.82,215.76,15.3378]
[1731791141203,18.83403133,215.82,215.76,15.3378]
[1731791141632,14.20053133,215.82,215.76,15.3378]
[1731791142124,14.20053133,215.83,215.77,20.21916462]
[1731791142325,14.20053133,215.85,215.77,34.41969595]
[1731791142824,19.37412443,215.86,215.79,0.09367462]
[1731791143025,19.37412443,215.86,215.79,20.21916462]
[1731791144328,14.20053133,215.84,215.79,0.21916462]
[1731791144716,14.20053133,215.84,215.78,0.21916462]
[1731791144922,14.20053133,215.85,215.78,0.21916462]
[1731791145410,14.20053133,215.84,215.78,0.21916462]
[1731791146107,14.20053133,215.82,215.77,20.0]
[1731791146307,14.20053133,215.82,215.76,15.3378]
[1731791147930,18.83413133,215.82,215.76,15.3378]
[1731791148512,14.20053133,215.84,215.77,34.29420595]
[1731791148924,0.5408931,215.86,215.81,20.78290595]
[1731791150031,0.5408931,215.86,215.82,14.20053133]
[1731791152035,0.5408931,215.86,215.84,14.20053133]
[1731791152248,0.5408931,215.86,215.85,34.29420595]
[1731791152420,0.5408931,215.86,215.85,20.09367462]
[1731791152623,0.5408931,215.86,215.85,0.09367462]
[1731791157019,0.5408931,215.86,215.85,34.29420595]
[1731791160345,0.5408931,215.86,215.84,16.2274]
[1731791160519,14.20053133,215.85,215.81,6.4887]
[1731791160871,5.1735931,215.86,215.78,16.2274]
[1731791160872,14.20053133,215.84,215.78,16.2274]
[1731791161044,14.74142443,215.86,215.79,14.20053133]
[1731791161218,0.5408931,215.86,215.82,14.20053133]
[1731791161414,0.5408931,215.86,215.79,0.09367462]
[1731791161847,0.5408931,215.86,215.79,20.09367462]
[1731791162023,0.5408931,215.86,215.8,0.12549]
[1731791162224,0.5408931,215.86,215.83,14.20053133]
[1731791163840,0.5408931,215.86,215.85,14.20053133]
[1731791164037,0.5408931,215.86,215.85,34.29420595]
[1731791164232,0.5408931,215.86,215.85,20.0]
[1731791164646,0.5408931,215.86,215.83,20.0]
[1731791164845,0.5408931,215.86,215.82,9.15281655]
[1731791165150,0.5408931,215.86,215.83,20.0]
[1731791166140,0.5408931,215.86,215.82,20.0]
[1731791166735,0.5408931,215.86,215.82,9.05914193]
[1731791167733,0.5408931,215.86,215.83,23.776884]
[1731791169436,0.5408931,215.86,215.82,43.87055862]
[1731791170564,9.05914193,215.85,215.78,16.2274]
[1731791170863,5.1734931,215.86,215.78,16.2274]
[1731791171047,9.05914193,215.85,215.78,16.2274]
[1731791171765,13.69214193,215.85,215.78,16.2274]
[1731791171972,13.69214193,215.85,215.79,23.776884]
[1731791173247,4.633,215.85,215.79,23.776884]
[1731791173449,9.05914193,215.85,215.79,23.776884]
[1731791174864,9.05914193,215.83,215.78,16.2274]
[1731791175972,13.69244193,215.83,215.78,16.2274]
[1731791176560,9.05914193,215.83,215.78,16.2274]
[1731791178148,0.5408931,215.86,215.8,20.0]
[1731791178350,0.5408931,215.86,215.81,23.776884]
[1731791179652,0.5408931,215.86,215.84,43.776884]
[1731791179843,0.5408931,215.86,215.85,52.83602593]
[1731791180267,0.5408931,215.86,215.85,43.776884]
[1731791180572,0.5408931,215.86,215.82,43.776884]
[1731791182864,0.5408931,215.86,215.83,9.05914193]
[1731791183168,0.5408931,215.86,215.85,20.0]
[1731791186551,0.5408931,215.86,215.79,0.12549]
[1731791186750,9.05914193,215.84,215.78,16.2274]
[1731791186957,9.05914193,215.84,215.71,56.06004007]
[1731791186958,9.05914193,215.8,215.73,15.4775]
[1731791187180,9.05914193,215.78,215.73,15.4775]
[1731791187964,9.05914193,215.76,215.7,6.2892]
[1731791188171,9.05914193,215.74,215.67,15.4775]
[1731791188366,160.9,215.85,215.72,9.05914193]
[1731791188564,9.05914193,215.8,215.72,9.05914193]
[1731791188892,14.16847986,215.78,215.72,0.09367462]
[1731791189194,14.16847986,215.77,215.7,14.16847986]
[1731791189482,14.16847986,215.76,215.69,14.16847986]
[1731791189694,14.16847986,215.77,215.69,14.16847986]
[1731791190593,14.16847986,215.79,215.72,14.16847986]
[1731791190793,14.16847986,215.8,215.73,20.0]
[1731791191387,14.16847986,215.8,215.73,14.16847986]
[1731791191582,14.16847986,215.8,215.74,20.0]
[1731791193401,14.16847986,215.8,215.73,20.0]
[1731791193592,14.16847986,215.79,215.72,20.09367462]
[1731791194098,14.16847986,215.76,215.69,14.16847986]
[1731791195103,14.16847986,215.76,215.67,29.64597986]
[1731791195390,14.16847986,215.76,215.68,20.0]
[1731791195899,14.16847986,215.74,215.68,20.0]
[1731791196289,14.16847986,215.75,215.68,20.0]
[1731791200408,14.16847986,215.71,215.67,15.4775]
[1731791200974,14.16847986,215.71,215.63,14.16847986]
[1731791201180,21.5629,215.8,215.65,20.0]
[1731791201391,14.16847986,215.72,215.65,20.0]
[1731791201605,14.16847986,215.7,215.63,14.16847986]
[1731791202681,14.16847986,215.7,215.64,20.0]
[1731791203297,14.16847986,215.72,215.65,14.26215448]
[1731791207698,14.16847986,215.66,215.61,15.8535]
[1731791207897,14.16847986,215.71,215.61,15.8535]
[1731791207898,14.16847986,215.64,215.61,15.8535]
[1731791208402,14.16847986,215.71,215.55,6.2345]
[1731791208403,14.16847986,215.62,215.55,21.9188]
[1731791208910,14.16847986,215.62,215.56,0.09367462]
[1731791209618,14.16847986,215.62,215.56,20.09367462]
[1731791211192,15.73137986,215.71,215.6,0.09367462]
[1731791211193,14.16847986,215.66,215.6,0.09367462]
[1731791211401,14.16847986,215.67,215.6,14.26215448]
[1731791211698,14.16847986,215.62,215.56,0.12549]
[1731791211909,14.16847986,215.62,215.56,20.0]
[1731791212098,14.16847986,215.61,215.56,0.09367462]
[1731791212704,14.16847986,215.62,215.56,0.09367462]
[1731791213401,14.16847986,215.59,215.55,15.6843]
[1731791213796,14.16847986,215.6,215.55,15.6843]
[1731791214414,14.16847986,215.59,215.55,15.6843]
[1731791214791,9.08380654,215.59,215.55,15.6843]
[1731791215897,9.08380654,215.57,215.51,9.083807]
[1731791216102,9.08380654,215.57,215.5,22.6518]
[1731791216315,9.08380654,215.54,215.5,16.4173]
[1731791218913,14.19934969,215.55,215.5,16.4173]
[1731791220599,14.19934969,215.58,215.5,30.61664969]
[1731791220799,14.19934969,215.58,215.51,20.0]
[1731791221222,14.19934969,215.57,215.51,20.0]
[1731791221396,14.19934969,215.56,215.5,16.4173]
[1731791222014,1.5629,215.63,215.5,16.4173]
[1731791222015,14.19934969,215.53,215.5,16.4173]
[1731791222318,14.19934969,215.51,215.46,16.6608]
[1731791222614,14.19934969,215.5,215.46,16.6608]
[1731791222821,14.19934969,215.51,215.46,16.6608]
[1731791223623,20.12549,215.59,215.46,16.6608]
[1731791223624,14.19934969,215.5,215.46,16.6608]
[1731791224698,14.19934969,215.51,215.46,16.6608]
[1731791224898,14.19934969,215.52,215.46,16.6608]
[1731791226702,14.19934969,215.51,215.46,16.6608]
[1731791227102,14.19934969,215.5,215.43,14.19934969]
[1731791227306,14.19934969,215.5,215.44,20.0]
[1731791227495,14.19934969,215.53,215.46,14.19934969]
[1731791227701,14.19934969,215.54,215.46,14.19934969]
[1731791228024,14.19934969,215.53,215.46,14.19934969]
[1731791229018,14.19934969,215.53,215.47,20.0]
[1731791235028,14.19934969,215.56,215.49,14.19934969]
[1731791235806,14.19934969,215.56,215.48,14.19934969]
[1731791236214,14.19934969,215.56,215.5,15.8589]
[1731791237521,14.19934969,215.55,215.5,15.8589]
[1731791238834,9.08709918,215.55,215.5,15.8589]
[1731791239734,9.08709918,215.53,215.5,15.8589]
[1731791240227,9.08709918,215.54,215.5,15.8589]
[1731791242329,9.08709918,215.55,215.5,15.8589]
[1731791242912,9.08709918,215.56,215.5,15.8589]
[1731791243112,36.34839672,215.71,215.5,15.8589]
[1731791243113,4.6377,215.62,215.53,29.08709918]
[1731791243321,9.08709918,215.61,215.54,9.08709918]
[1731791243534,9.08709918,215.58,215.52,23.87055862]
[1731791243840,9.08709918,215.58,215.53,20.0]
[1731791244221,9.08709918,215.58,215.52,23.87055862]
[1731791244419,9.08709918,215.58,215.53,20.0]
[1731791245730,9.08709918,215.59,215.53,20.0]
[1731791246044,4.6367,215.67,215.54,32.9576578]
[1731791246232,9.08709918,215.64,215.57,9.08709918]
[1731791246437,4.6367,215.67,215.58,9.08709918]
[1731791246615,9.08709918,215.65,215.59,20.0]
[1731791247349,9.08709918,215.67,215.6,9.08709918]
[1731791247527,9.08709918,215.67,215.56,20.0]
[1731791247528,9.08709918,215.63,215.56,29.08709918]
[1731791247718,9.08709918,215.62,215.56,20.0]
[1731791248636,9.08709918,215.64,215.57,9.08709918]
[1731791249542,36.34839672,215.71,215.58,20.09367462]
[1731791249718,9.08709918,215.68,215.61,9.08709918]
[1731791250218,9.08709918,215.67,215.6,9.08709918]
[1731791250437,9.08709918,215.69,215.61,9.08709918]
[1731791250645,9.08709918,215.69,215.62,15.4152]
[1731791250970,9.08709918,215.71,215.64,9.08709918]
[1731791251117,9.08709918,215.7,215.63,15.42359918]
[1731791251525,9.08709918,215.69,215.63,6.3365]
[1731791253343,4.6353,215.74,215.65,9.08709918]
[1731791253524,9.08709918,215.73,215.66,9.08709918]
[1731791254348,4.6339,215.8,215.69,9.08709918]
[1731791254516,4.6339,215.8,215.72,9.08709918]
[1731791254717,9.08709918,215.79,215.72,9.08709918]
[1731791254919,0.5408931,215.86,215.73,9.08709918]
[1731791255240,9.08709918,215.82,215.75,9.08709918]
[1731791255445,9.08709918,215.83,215.76,9.08709918]
[1731791255819,9.08709918,215.82,215.75,9.08709918]
[1731791256239,9.08709918,215.82,215.74,9.08709918]
[1731791256429,9.08709918,215.81,215.74,9.08709918]
[1731791256642,9.08709918,215.8,215.74,20.0]
[1731791256942,14.16635631,215.8,215.73,14.16635631]
[1731791257249,14.16635631,215.79,215.72,14.26003093]
[1731791257444,14.16635631,215.79,215.72,14.16635631]
[1731791257627,14.16635631,215.77,215.71,6.3365]
[1731791257832,4.6328,215.85,215.71,6.3365]
[1731791257833,14.16635631,215.75,215.71,6.3365]
[1731791258127,14.16635631,215.73,215.7,15.4152]
[1731791258718,14.16635631,215.72,215.7,15.4152]
[1731791260343,14.16635631,215.71,215.66,6.3365]
[1731791260652,14.16635631,215.69,215.66,6.3365]
[1731791262049,14.16635631,215.72,215.66,6.3365]
[1731791262722,4.72797462,215.78,215.66,6.3365]
[1731791262723,14.16635631,215.7,215.66,6.3365]
[1731791263131,14.16635631,215.69,215.66,6.3365]
[1731791267336,14.16635631,215.69,215.65,15.4152]
[1731791267534,14.16635631,215.67,215.65,15.4152]
[1731791269935,14.16635631,215.69,215.65,15.4152]
[1731791273537,14.16635631,215.71,215.65,15.4152]
[1731791273861,14.16635631,215.72,215.65,29.58155631]
[1731791276053,14.16635631,215.74,215.67,14.16635631]
[1731791276251,14.16635631,215.78,215.71,14.16635631]
[1731791277941,14.16635631,215.77,215.7,14.16635631]
[1731791279036,14.16635631,215.78,215.71,14.16635631]
[1731791280251,14.16635631,215.79,215.72,14.16635631]
[1731791280443,18.80025631,215.8,215.72,14.16635631]
[1731791280650,14.16635631,215.82,215.74,14.16635631]
[1731791280862,14.16635631,215.83,215.76,14.16635631]
[1731791281360,14.16635631,215.83,215.75,14.16635631]
[1731791282946,14.16635631,215.83,215.75,13.47559776]
[1731791283448,14.16635631,215.84,215.76,37.94324031]
[1731791283640,14.16635631,215.81,215.74,20.0]
[1731791283839,14.16635631,215.79,215.73,15.0633]
[1731791285038,14.16635631,215.83,215.76,14.16635631]
[1731791285861,14.16635631,215.83,215.75,14.16635631]
[1731791286050,18.79965631,215.83,215.75,14.16635631]
[1731791288954,14.16635631,215.8,215.74,20.0]
[1731791289465,14.16635631,215.79,215.73,15.0633]
[1731791289960,14.16635631,215.81,215.73,29.22965631]
[1731791290175,14.16635631,215.81,215.74,14.16635631]
[1731791291256,14.16635631,215.84,215.77,14.16635631]
[1731791291645,14.16635631,215.83,215.75,14.16635631]
[1731791291845,14.16635631,215.81,215.73,29.22965631]
[1731791292046,14.16635631,215.8,215.73,15.0633]
[1731791292240,14.16635631,215.77,215.73,15.0633]
[1731791292469,14.16635631,215.76,215.73,15.0633]
[1731791295067,14.16635631,215.77,215.73,15.0633]
[1731791295573,4.6337,215.81,215.73,29.22965631]
[1731791295750,18.80005631,215.81,215.74,14.16635631]
[1731791295951,14.16635631,215.83,215.76,14.16635631]
[1731791296458,14.16635631,215.83,215.75,14.16635631]
[1731791296953,14.16635631,215.82,215.75,14.16635631]
[1731791297556,14.16635631,215.83,215.75,14.16635631]
[1731791297973,14.16635631,215.84,215.76,14.16635631]
[1731791298171,14.16635631,215.84,215.74,23.776884]
[1731791298375,14.16635631,215.8,215.74,20.0]
[1731791298578,14.16635631,215.82,215.75,14.16635631]
[1731791299455,18.79955631,215.83,215.76,14.16635631]
[1731791299776,18.79955631,215.83,215.75,14.16635631]
[1731791299979,14.16635631,215.82,215.74,34.16635631]
[1731791300282,14.16635631,215.79,215.73,15.0633]
[1731791301175,4.6341,215.8,215.73,29.22965631]
[1731791301385,4.6341,215.8,215.74,14.16635631]
[1731791301557,4.6341,215.8,215.73,29.22965631]
[1731791301759,14.16635631,215.84,215.76,14.16635631]
[1731791302857,18.79945631,215.84,215.76,14.16635631]
[1731791303461,14.16635631,215.85,215.77,20.30195631]
[1731791303654,19.33994941,215.86,215.79,14.16635631]
[1731791304068,14.16635631,215.85,215.78,14.16635631]
[1731791304968,18.79925631,215.85,215.78,14.16635631]
[1731791306775,18.79925631,215.85,215.77,20.30195631]
[1731791306982,14.16635631,215.82,215.77,6.1356]
[1731791308059,18.79975631,215.82,215.77,6.1356]
[1731791308772,4.6334,215.82,215.77,6.1356]
[1731791309583,9.06439175,215.8,215.73,15.0633]
[1731791309759,9.06439175,215.79,215.73,15.0633]
[1731791309965,13.69859175,215.79,215.73,15.0633]
[1731791313876,9.06439175,215.8,215.73,24.12769175]
[1731791314774,9.06439175,215.8,215.73,15.0633]
[1731791315974,4.6341,215.79,215.73,15.0633]
[1731791316575,0.12549,215.85,215.75,9.06439175]
[1731791316769,9.06439175,215.83,215.75,9.06439175]
[1731791317887,4.6334,215.82,215.75,9.06439175]
[1731791318881,4.6334,215.82,215.73,15.0633]
[1731791318882,9.06439175,215.81,215.74,23.776884]
[1731791320184,4.6334,215.82,215.75,9.06439175]
[1731791321691,0.5408931,215.86,215.8,9.06439175]
[1731791321898,0.5408931,215.86,215.81,30.67599175]
[1731791322196,5.1734931,215.86,215.81,21.6116]
[1731791322498,14.23788485,215.86,215.81,21.6116]
[1731791322704,9.06439175,215.84,215.81,21.6116]
[1731791322895,0.5408931,215.86,215.81,21.6116]
[1731791323079,0.5408931,215.86,215.81,30.67599175]
[1731791325081,0.5408931,215.86,215.81,21.6116]
[1731791325288,9.60528485,215.86,215.81,21.6116]
[1731791325788,14.23798485,215.86,215.81,21.6116]
[1731791325969,9.06439175,215.85,215.81,21.6116]
[1731791326778,14.23798485,215.86,215.81,21.6116]
[1731791327492,5.1735931,215.86,215.81,21.6116]
[1731791327675,14.23798485,215.86,215.81,21.6116]
[1731791328281,9.06439175,215.84,215.81,21.6116]
[1731791328492,9.06439175,215.84,215.81,15.2065]
[1731791328790,9.06439175,215.82,215.76,21.3632]
[1731791329093,9.06439175,215.81,215.76,21.3632]
[1731791329297,5.1735931,215.86,215.76,21.3632]
[1731791329502,9.06439175,215.82,215.76,21.3632]
[1731791329895,9.06439175,215.84,215.76,30.42759175]
[1731791330401,4.6332,215.83,215.76,30.42759175]
[1731791330780,13.69759175,215.83,215.76,21.3632]
[1731791332170,13.69759175,215.83,215.76,30.42759175]
[1731791332395,13.69739175,215.85,215.78,9.06439175]
[1731791333293,0.5408931,215.86,215.79,23.776884]
[1731791333530,0.5408931,215.86,215.8,9.06439175]
[1731791343381,0.5408931,215.86,215.82,23.776884]
[1731791345905,0.5408931,215.86,215.81,15.3893]
[1731791346113,9.06439175,215.85,215.81,15.3893]
[1731791346402,9.06439175,215.83,215.81,15.3893]
[1731791346789,9.60528485,215.86,215.81,15.3893]
[1731791346989,0.5408931,215.86,215.81,15.3893]
[1731791347389,0.5408931,215.86,215.81,24.45369175]
[1731791347589,0.5408931,215.86,215.82,32.84127575]
[1731791349311,0.5408931,215.86,215.83,9.06439175]
[1731791349616,0.5408931,215.86,215.85,32.84127575]
[1731791350811,0.5408931,215.86,215.85,23.776884]
[1731791352623,0.5408931,215.86,215.84,6.6188]
[1731791354924,0.5408931,215.86,215.81,15.3893]
[1731791355809,14.23788485,215.86,215.81,15.3893]
[1731791356315,9.06439175,215.84,215.81,15.3893]
[1731791356625,5.1734931,215.86,215.73,9.06439175]
[1731791356626,9.06439175,215.82,215.73,9.06439175]
[1731791356805,9.06439175,215.8,215.73,9.06439175]
[1731791357008,9.06439175,215.81,215.73,9.06439175]
[1731791357803,9.06439175,215.8,215.73,9.06439175]
[1731791358121,9.06439175,215.79,215.73,20.0]
[1731791358304,9.06439175,215.8,215.73,20.0]
[1731791359509,9.06439175,215.8,215.74,23.776884]
[1731791363406,9.06439175,215.81,215.74,23.776884]
[1731791364817,5.1736931,215.86,215.76,9.06439175]
[1731791365008,0.5408931,215.86,215.79,23.776884]
[1731791365327,0.5408931,215.86,215.84,9.06439175]
[1731791365532,0.5408931,215.86,215.85,32.84127575]
[1731791366830,0.5408931,215.86,215.85,23.776884]
[1731791368040,0.5408931,215.86,215.81,6.3674]
[1731791368342,9.60528485,215.86,215.81,6.3674]
[1731791368551,0.5408931,215.86,215.81,6.3674]
[1731791369423,0.5408931,215.86,215.82,23.776884]
[1731791372220,0.5408931,215.86,215.82,32.84127575]
[1731791373525,0.5408931,215.86,215.82,23.776884]
[1731791375352,0.5408931,215.86,215.84,23.776884]
[1731791375846,0.5408931,215.86,215.82,32.84127575]
[1731791376039,0.5408931,215.86,215.82,23.776884]
[1731791377555,0.5408931,215.86,215.81,6.3674]
[1731791377843,0.5408931,215.86,215.82,9.06439175]
[1731791378046,0.5408931,215.86,215.81,15.43179175]
[1731791378851,0.5408931,215.86,215.83,23.776884]
[1731791379354,0.5408931,215.86,215.83,9.06439175]
[1731791379552,0.5408931,215.86,215.84,23.776884]
[1731791383160,0.5408931,215.86,215.82,32.84127575]
[1731791383458,0.5408931,215.86,215.83,23.776884]
[1731791383661,0.5408931,215.86,215.83,32.84127575]
[1731791385248,0.5408931,215.86,215.84,9.06439175]
[1731791385461,0.5408931,215.86,215.85,9.06439175]
[1731791386034,0.5408931,215.86,215.85,32.84127575]
[1731791386656,0.5408931,215.86,215.85,52.96676575]
[1731791386953,0.5408931,215.86,215.85,68.21556575]
[1731791391150,0.5408931,215.86,215.85,68.43473037]
[1731791392235,4.63,215.99,215.85,68.43473037]
[1731791392236,9.06439175,215.98,215.86,44.12153862]
[1731791392560,9.06439175,215.98,215.92,23.776884]
[1731791393154,4.526596,216.0,215.96,9.06439175]
[1731791393344,4.526596,216.0,215.96,23.776884]
[1731791393937,4.526596,216.0,215.97,9.06439175]
[1731791394159,4.526596,216.0,215.98,23.776884]
[1731791394842,4.526596,216.0,215.99,32.84127575]
[1731791395643,4.526596,216.0,215.99,58.90097575]
[1731791396364,4.526596,216.0,215.99,23.776884]
[1731791396566,4.526596,216.0,215.97,23.776884]
[1731791396747,4.526596,216.0,215.96,23.776884]
[1731791397061,4.526596,216.0,215.96,32.84127575]
[1731791398464,4.526596,216.0,215.98,23.776884]
[1731791398755,4.526596,216.0,215.99,32.84127575]
[1731791401072,4.526596,216.0,215.99,52.84127575]
[1731791401871,4.526596,216.0,215.99,43.776884]
[1731791402179,4.526596,216.0,215.99,52.84127575]
[1731791403051,4.526596,216.0,215.98,23.776884]
[1731791403250,4.526596,216.0,215.95,9.06439175]
[1731791403455,4.526596,216.0,215.96,9.06439175]
[1731791403665,4.526596,216.0,215.97,9.06439175]
[1731791403848,4.526596,216.0,215.94,22.0639]
[1731791404044,4.526596,216.0,215.97,9.06439175]
[1731791404465,4.526596,216.0,215.98,23.776884]
[1731791404946,4.526596,216.0,215.97,23.776884]
[1731791406853,4.526596,216.0,215.96,23.776884]
[1731791407049,4.526596,216.0,215.95,23.776884]
[1731791407257,13.59098775,216.0,215.95,23.776884]
[1731791407460,9.06439175,215.98,215.89,21.6051]
[1731791407773,9.06439175,215.98,215.91,13.590987]
[1731791407967,9.06439175,215.98,215.89,21.6051]
[1731791407968,9.06439175,215.99,215.92,9.06439175]
[1731791408157,13.59098775,216.0,215.93,9.06439175]
[1731791408347,4.526596,216.0,215.94,9.06439175]
[1731791408775,4.526596,216.0,215.95,23.776884]
[1731791409079,9.06439175,215.99,215.94,23.776884]
[1731791409373,9.06439175,215.97,215.9,18.511801]
[1731791409567,9.06439175,215.96,215.9,18.511801]
[1731791410167,9.06439175,215.91,215.84,21.6051]
[1731791410350,9.06439175,215.89,215.84,15.3316]
[1731791410557,2.1036,215.96,215.85,18.511801]
[1731791410558,9.06439175,215.9,215.85,18.511801]
[1731791410862,9.06439175,215.91,215.84,15.3316]
[1731791411270,9.06439175,215.91,215.85,9.064392]
[1731791411570,9.06439175,215.9,215.86,23.776884]
[1731791411750,9.06439175,215.89,215.86,23.776884]
[1731791412578,9.06439175,215.89,215.85,9.064392]
[1731791412752,9.06439175,215.9,215.85,9.064392]
[1731791413153,9.06439175,215.91,215.85,9.064392]
[1731791413375,0.21916462,215.99,215.87,9.06439175]
[1731791413552,9.06439175,215.94,215.87,9.06439175]
[1731791413752,9.06439175,215.94,215.89,23.776884]
[1731791416668,9.06439175,215.95,215.89,23.776884]
[1731791418583,13.69509175,215.95,215.89,23.776884]
[1731791420479,9.06439175,215.94,215.88,23.776884]
[1731791421083,9.06439175,215.92,215.86,23.776884]
[1731791421885,9.06439175,215.89,215.86,23.776884]
[1731791422179,9.06439175,215.9,215.86,23.776884]
[1731791422382,9.06439175,215.91,215.86,23.776884]
[1731791426481,4.6304,215.96,215.86,32.84127575]
[1731791426782,9.06439175,215.95,215.88,32.84127575]
[1731791426987,9.06439175,215.95,215.88,9.06439175]
[1731791427384,9.06439175,215.9,215.86,23.776884]
[1731791427692,9.06439175,215.89,215.86,23.776884]
[1731791428192,9.06439175,215.87,215.79,30.66949175]
[1731791428493,9.06439175,215.86,215.79,30.66949175]
[1731791428892,9.06439175,215.87,215.8,9.06439175]
[1731791429097,9.06439175,215.87,215.81,11.6748]
[1731791429268,9.06439175,215.87,215.8,9.06439175]
[1731791429471,9.06439175,215.87,215.81,9.064392]
[1731791430080,9.06439175,215.87,215.82,23.776884]
[1731791431796,9.06439175,215.86,215.82,23.776884]
[1731791431992,9.06439175,215.84,215.82,23.776884]
[1731791432175,9.06439175,215.88,215.82,23.776884]
[1731791433196,9.06439175,215.87,215.82,23.776884]
[1731791433374,9.06439175,215.86,215.82,23.776884]
[1731791434690,9.06439175,215.85,215.82,23.776884]
[1731791434890,9.06439175,215.85,215.8,23.776884]
[1731791435272,9.06439175,215.86,215.8,23.776884]
[1731791439573,9.06439175,215.85,215.8,23.776884]
[1731791440388,9.06439175,215.87,215.8,23.776884]
[1731791441879,13.69679175,215.87,215.8,23.776884]
[1731791442083,9.06439175,215.85,215.8,23.776884]
[1731791443082,11.5783,215.92,215.8,23.776884]
[1731791443285,0.12549,215.91,215.8,32.84127575]
[1731791443499,9.06439175,215.88,215.8,32.84127575]
[1731791443994,9.06439175,215.86,215.8,23.776884]
[1731791445109,9.06439175,215.82,215.8,23.776884]
[1731791447904,9.06439175,215.82,215.76,9.064392]
[1731791448204,9.06439175,215.82,215.77,23.776884]
[1731791448881,9.06439175,215.84,215.77,23.776884]
[1731791449080,0.12549,215.91,215.79,32.84127575]
[1731791449315,9.06439175,215.86,215.79,9.06439175]
[1731791449505,9.06439175,215.86,215.77,32.84127575]
[1731791450112,13.69709175,215.86,215.77,32.84127575]
[1731791455295,9.06439175,215.86,215.77,32.84127575]
[1731791455509,13.69709175,215.86,215.77,32.84127575]
[1731791457215,9.06439175,215.89,215.82,23.776884]
[1731791457914,9.06439175,215.87,215.82,23.776884]
[1731791458117,9.06439175,215.87,215.81,23.776884]
[1731791460308,9.06439175,215.88,215.81,23.776884]
[1731791460692,4.6313,215.92,215.82,9.06439175]
[1731791460919,9.06439175,215.91,215.84,9.06439175]
[1731791461216,13.69569175,215.92,215.86,23.776884]
[1731791461428,9.06439175,215.9,215.86,23.776884]
[1731791462020,13.69619175,215.9,215.86,23.776884]
[1731791462196,13.69619175,215.9,215.84,23.776884]
[1731791463310,4.6318,215.9,215.84,23.776884]
[1731791463706,13.69619175,215.9,215.83,23.776884]
[1731791463898,9.06439175,215.9,215.83,23.776884]
[1731791464107,9.06439175,215.91,215.83,32.84127575]
[1731791465200,13.69589175,215.91,215.83,32.84127575]
[1731791465815,4.6312,215.93,215.85,9.06439175]
[1731791466022,9.06439175,215.94,215.87,23.776884]
[1731791466323,9.06439175,215.92,215.86,23.776884]
[1731791467225,13.69589175,215.92,215.86,23.776884]
[1731791467729,9.06439175,215.92,215.86,23.776884]
[1731791468022,4.526596,216.0,215.92,23.776884]
[1731791468195,9.06439175,215.98,215.92,23.776884]
[1731791469828,9.06439175,215.93,215.89,6.5817]
[1731791470302,0.09367462,215.97,215.89,6.5817]
[1731791470303,0.09367462,215.97,215.9,23.776884]
[1731791470503,9.06439175,215.92,215.88,23.776884]
[1731791470704,9.06439175,215.91,215.88,23.776884]
[1731791471128,9.06439175,215.9,215.87,15.8267]
[1731791471303,0.21916462,215.97,215.83,6.5817]
[1731791471304,9.06439175,215.89,215.83,6.5817]
[1731791472025,9.06439175,215.9,215.83,15.64609175]
[1731791472329,4.6315,215.92,215.83,15.64609175]
[1731791472508,9.06439175,215.91,215.83,15.64609175]
[1731791472912,9.06439175,215.91,215.84,23.776884]
[1731791473719,4.6304,215.96,215.87,9.06439175]
[1731791473929,9.06439175,215.95,215.88,9.06439175]
[1731791474107,9.06439175,215.94,215.86,9.06439175]
[1731791474307,9.06439175,215.93,215.87,23.776884]
[1731791475027,9.06439175,215.94,215.87,23.776884]
[1731791475599,9.06439175,215.94,215.87,32.84127575]
[1731791475825,13.69449175,215.98,215.92,23.776884]
[1731791476147,4.526596,216.0,215.95,32.84127575]
[1731791477114,4.526596,216.0,215.99,23.776884]
[1731791477702,4.526596,216.0,215.97,9.06439175]
[1731791477908,4.526596,216.0,215.98,23.776884]
[1731791478125,4.526596,216.0,215.96,23.776884]
[1731791479305,4.526596,216.0,215.97,9.06439175]
[1731791479506,4.526596,216.0,215.96,32.84127575]
[1731791480034,4.526596,216.0,215.94,23.776884]
[1731791480530,4.526596,216.0,215.95,23.776884]
[1731791480906,9.156196,216.0,215.95,23.776884]